Cogmind - Beta 14 @@@ ROGUE MODE // 2025.03.27 @ 04:57:44 Player: mournfully Result: Destroyed by P-80 Master with Gamma Rifle Performance ------------- Evolutions (7) 3500 Regions Visited (18) 3600 Robots Destroyed (166) 830 Value Destroyed (3922) 3922 Prototype IDs (57) 1140 Alien Tech Used (0) 0 Bonus (1083) 1083 TOTAL SCORE: 14075 Bonus ------- Follower Combat Kills 340 Entered DSFs 500 Aligned with FarCom 300 Friendly Fire -57 Cogmind --------- Core Integrity 0/1300 Matter 280/300 Energy 5/100 System Corruption 33% Temperature Cool (0) Movement Walking (90) Location -3/Research Parts ------- > --- POWER (2) -------- (None) > --- PROPULSION (7) --- Improved VSS Leg Improved VSS Leg > --- UTILITY (10) ----- ECM Suite Hacking Suite Improved System Shield > --- WEAPON (2) ------- (None) > --- INVENTORY (5) ---- Improved Ion Engine Graphene Brace Hacking Suite Enhanced Nova Cannon Katana Peak State ------------ > --- POWER ------------ Light Antimatter Reactor Improved Fusion Compressor > --- PROPULSION ------- Field Propulsion Array Field Propulsion Array Field Propulsion Array > --- UTILITY ---------- Lightpack 2.0 Experimental ECM Suite Hacking Suite Hacking Suite Hacking Suite System Shield Drone Bay > --- WEAPON ----------- Micro-nuke Launcher Katana > --- INVENTORY -------- Fusion Compressor Neutrino Core Improved Heavy Treads Improved Gravmag System Improved Gravmag System Improved Gravmag System Gravmag Array Improved Linear Gravjet Improved VTOL Module Impulse Thruster Field Propulsion Array Field Propulsion Array Advanced Power Amplifier Improved Cryofiber Web Advanced Energy Well Advanced Sensor Array Improved Terrain Scanner Advanced Terrain Scan Processor Improved Transmission Jammer Improved Reaction Control System Hardened Medium Armor Plating Hardened Medium Armor Plating Graphene Brace Improved System Guard Drone Bay Drone Bay Drone Bay Nova Cannon Enhanced Nova Cannon Coil Gun KE Penetrator Grenade Launcher Advanced Datajack Katana Enhanced Force Lance [Rating: 143] Favorites ----------- Power Reinforced Ion Engine Engine Reinforced Ion Engine Power Core Light Fission Core Reactor Light Antimatter Reactor Propulsion Light Treads Treads Light Treads Leg Improved VSS Leg Hover Unit Improved Gravmag System Flight Unit Cesium-ion Thruster Utility Hacking Suite Device Heat Sink Storage High-capacity Storage Unit Processor Improved System Guard Hackware Hacking Suite Protection Hardened Light Armor Plating Weapon Particle Gun Energy Gun Particle Gun Energy Cannon Enhanced Nova Cannon Ballistic Gun Heavy Assault Rifle Ballistic Cannon Light Cannon Launcher Grenade Launcher Special Weapon Plasma Cutter Impact Weapon Makeshift Hammer Slashing Weapon Katana Piercing Weapon Lance Special Melee Weapon Datajack Build | -11 -10 -10 -9 -9 -9 -8 -8 -7 -7 -6 -6 -6 -5 -5 -4 -4 -4 -3 ------- Run | Yrd Mat Min Mat Min Exi Min Mat Fac DSF Fac Low Low Fac Ext Fac Was Fac Res Slots Evolved 14 | . . . 2 . . . 2 2 . 2 . . 2 . 2 . . 2 Power 1 | . . . . . . . . . . . . . . . 1 . . . Propulsion 5 | . . . 1 . . . . 1 . 1 . . . . 1 . . 1 Utility 8 | . . . 1 . . . 2 1 . 1 . . 2 . . . . 1 Weapon . | . . . . . . . . . . . . . . . . . . . Parts Attached 348 | 8 11 3 56 7 1 8 32 8 11 28 3 . 10 35 18 6 46 57 Power 43 | 1 3 . 11 1 . . 3 1 . 2 1 . . 1 2 4 6 7 Engine 18 | 1 3 . 9 1 . . 2 . . . . . . . 1 . . 1 Core 18 | . . . 2 . . . 1 1 . 2 1 . . 1 1 3 4 2 Reactor 7 | . . . . . . . . . . . . . . . . 1 2 4 Propulsion 84 | 2 1 . 10 3 . . 7 3 8 6 . . 4 12 3 . 8 17 Treads 23 | 2 1 . 9 3 . . 6 . 2 . . . . . . . . . Leg 2 | . . . . . . . . . . . . . . . . . . 2 Wheel . | . . . . . . . . . . . . . . . . . . . Hover 12 | . . . . . . . 1 . . . . . . 4 . . 2 5 Flight 47 | . . . 1 . . . . 3 6 6 . . 4 8 3 . 6 10 Utility 111 | 2 5 2 16 2 . . 5 3 2 9 2 . 3 8 7 1 23 21 Device 68 | 1 3 2 9 1 . . 3 . . 2 2 . 2 4 5 1 17 16 Storage 7 | 1 1 . 1 . . . . 1 . . . . . 1 1 . 1 . Processor 8 | . 1 . 1 . . . . . . 2 . . . . . . 2 2 Hackware 8 | . . . . . . . . 1 . 1 . . 1 2 . . 1 2 Protection 20 | . . . 5 1 . . 2 1 2 4 . . . 1 1 . 2 1 Artifact . | . . . . . . . . . . . . . . . . . . . Weapon 110 | 3 2 1 19 1 1 8 17 1 1 11 . . 3 14 6 1 9 12 Energy Gun 17 | 2 . 1 6 . . 2 6 . . . . . . . . . . . Energy Cannon 9 | . . . 1 . . . . . . . . . . . . 1 2 5 Ballistic Gun 21 | 1 2 . 6 . . 2 3 . . 3 . . 2 1 . . 1 . Ballistic Cannon 17 | . . . 1 1 . 3 6 . 1 2 . . . 3 . . . . Launcher 28 | . . . 4 . . 1 . 1 . 3 . . . 8 5 . 1 5 Special Weapon 2 | . . . 1 . . . 1 . . . . . . . . . . . Impact Weapon 3 | . . . . . . . . . . . . . . 2 1 . . . Slashing Weapon 10 | . . . . . . . . . . 3 . . 1 . . . 5 1 Piercing Weapon 1 | . . . . . . . . . . . . . . . . . . 1 Special Melee Weapon 2 | . . . . . 1 . 1 . . . . . . . . . . . Unidentified Prototypes 13 | . . . 1 . . . 2 . . . . . 2 1 2 . 3 2 Parts Lost 71 | . . . 8 3 . . 4 . 5 4 . . 1 11 2 2 3 28 Power 9 | . . . 1 . . . . . 1 1 . . . 1 . . 2 3 Propulsion 25 | . . . 2 1 . . . . 3 2 . . 1 4 . 1 1 10 Utility 29 | . . . 3 2 . . 2 . 1 1 . . . 6 1 1 . 12 Weapon 8 | . . . 2 . . . 2 . . . . . . . 1 . . 3 Highest Loss Streak 14 | . . . 2 3 . . 1 . 5 2 . . 1 5 2 2 1 14 To Critical Strikes . | . . . . . . . . . . . . . . . . . . . Average Slot Usage (%) 88 | . 98 98 98 98 85 100 93 65 67 76 80 80 80 82 84 82 66 71 Engine 7 | . 13 14 10 11 11 11 8 . . . . . . . . 1 . . Core 1 | . . . . . . . . 7 7 6 6 6 5 5 7 7 5 . Treads 19 | . 28 28 32 32 33 33 27 9 . . . . . . . . . . Hover 1 | . . . . . . . . . . . . . . 14 . . . 1 Flight 7 | . . . . . . . . 15 27 32 33 33 29 13 31 31 15 17 Device 10 | . 12 12 11 9 11 11 9 3 . 8 6 6 10 8 4 10 6 14 Storage 8 | . 14 14 11 11 11 11 9 7 7 6 6 6 5 5 6 5 5 1 Hackware 5 | . . . . . . . . 4 7 6 13 13 15 14 18 15 18 16 Protection 7 | . . . 9 11 11 11 20 7 7 6 6 6 5 5 5 5 1 3 Energy Gun 4 | . 2 3 9 . . 9 7 2 . . . . . . . . . . Ballistic Gun 7 | . 25 24 11 11 . 7 4 1 . . . . . . . . . . Ballistic Cannon 1 | . . . . 10 . 3 5 . 1 . . . . . 2 . . . Slashing Weapon 1 | . . . . . . . . . . 4 6 6 4 . . . 3 3 Peak Build Rating 143 | 7 8 13 18 19 16 19 25 49 56 83 88 83 98 100 111 119 143 137 Average Rating 46 | 5 7 9 16 15 15 18 22 43 51 72 83 83 96 95 102 107 129 106 On Entrance 50 | . 7 7 13 18 16 16 19 21 49 50 78 83 83 95 81 111 94 120 Naked Turns . | . . . . . . . . . . . . . . . . . . . Heaviest Build 70 | 15 29 35 64 64 57 62 70 60 25 23 22 22 28 29 35 31 45 57 Greatest Support 63 | 40 40 40 60 60 60 60 63 60 20 25 25 25 30 39 47 47 45 52 Greatest Overweight (x) 3 | 1 . . 1 1 . 1 1 1 1 1 . . . 1 1 . 1 3 Average Overweight (x) . | . . . . . . 1 . . . . . . . . . . . . Largest Inventory Capacity 40 | 8 15 15 20 20 20 20 20 40 40 40 40 40 40 40 40 40 40 40 Average Capacity 24 | 7 9 15 19 20 20 20 20 36 40 40 40 40 40 40 40 40 40 19 Most Carried 40 | 2 15 15 20 20 20 20 20 20 27 40 40 39 39 40 40 40 40 40 Average Carried 22 | 1 8 14 19 19 19 19 19 16 19 33 38 39 38 37 36 38 38 18 Final Capacity 40 | 8 15 15 20 20 20 20 20 40 40 40 40 40 40 40 40 40 40 5 Final Carried 40 | 2 15 15 20 20 20 20 20 16 26 40 39 39 39 35 39 39 40 5 Class Distribution -------------------- 47% | Scavenger-Mutant 16% | Mutant 13% | Hauler-Sprinter 10% | Hauler-Mutant 7% | Hacker-Mutant 3% | Hacker-Sprinter Dominant Class ---------------- Mutant | -10/Materials Mutant | -10/Mines Scavenger-Mutant | -9/Materials Scavenger-Mutant | -9/Mines Scavenger-Mutant | -9/Exiles Scavenger-Mutant | -8/Mines Scavenger-Mutant | -8/Materials Hauler-Mutant | -7/Factory Hauler-Sprinter | -7/DSF Hauler-Sprinter | -6/Factory Hauler-Sprinter | -6/Lower Caves Hauler-Sprinter | -6/Lower Caves Hauler-Sprinter | -5/Factory Hauler-Mutant | -5/Extension Hacker-Sprinter | -4/Factory Hauler-Sprinter | -4/Waste Hacker-Mutant | -4/Factory Hacker-Sprinter | -3/Research Resources | -11 -10 -10 -9 -9 -9 -8 -8 -7 -7 -6 -6 -6 -5 -5 -4 -4 -4 -3 ----------- Run | Yrd Mat Min Mat Min Exi Min Mat Fac DSF Fac Low Low Fac Ext Fac Was Fac Res Matter Collected 5740 | 316 281 23 973 176 . 387 668 . 154 364 39 . 106 549 120 . 989 595 Remotely . | . . . . . . . . . . . . . . . . . . . Salvage Created 6717 | 189 327 . 1398 182 . 356 1051 . 48 620 . . 106 575 130 . 1043 692 Parts 373 | 8 26 . 91 12 . 27 69 . 5 34 . . 5 11 8 . 28 49 Haulers Intercepted 13 | . . . 3 . . . 2 . . 3 . . . . 1 . 3 1 Recyclers Shooed 9 | . . . 3 . . . 3 . . . . . . . . . . 3 Parts Field Recycled . | . . . . . . . . . . . . . . . . . . . Retrieved Matter . | . . . . . . . . . . . . . . . . . . . Parts Self-Destructed . | . . . . . . . . . . . . . . . . . . . Prevented . | . . . . . . . . . . . . . . . . . . . Kills | -11 -10 -10 -9 -9 -9 -8 -8 -7 -7 -6 -6 -6 -5 -5 -4 -4 -4 -3 ------- Run | Yrd Mat Min Mat Min Exi Min Mat Fac DSF Fac Low Low Fac Ext Fac Was Fac Res Combat Hostiles Destroyed 85 | . 10 . 26 5 . 7 20 . 1 1 . . . 3 4 . 4 4 Melee 7 | . . . . . . . . . . . . . . . . . 3 4 Guns 54 | . 10 . 22 3 . 1 16 . . 1 . . . 1 . . . . Cannons 6 | . . . . 2 . 1 3 . . . . . . . . . . . AOE 17 | . . . 4 . . 5 . . 1 . . . . 2 4 . 1 . Classes Destroyed 16 | 2 4 . 5 1 . . . . 1 1 . . . 1 . . 1 . Worker 7 | . . . 1 . . 1 3 . . . . . . . . . 1 1 Builder 10 | . . . 2 . . . . . . 3 . . . 1 . . 2 2 Tunneler 15 | 5 . . . . . 5 . . . 1 . . . 1 . . 2 1 Hauler 13 | . . . 3 . . . 2 . . 3 . . . . 1 . 3 1 Recycler 19 | 1 . . 2 . . 3 3 . . 1 . . 1 3 . . 4 1 Mechanic 1 | . . . . . . . . . . 1 . . . . . . . . Operator 8 | . 2 . 2 . . . . . . 1 . . . 1 . . . 2 Watcher 8 | . 2 . 4 . . . . . . . . . . 1 . . . 1 Swarmer 28 | . 6 . 3 1 . 7 6 . . 1 . . . . 4 . . . Grunt 25 | . 4 . 14 2 . . 5 . . . . . . . . . . . Brawler 2 | . . . . 2 . . . . . . . . . . . . . . Duelist 2 | . . . 2 . . . . . . . . . . . . . . . Sentry 17 | . . . 7 . . . 9 . . . . . . 1 . . . . Specialist 1 | . . . . . . . . . 1 . . . . . . . . . Hunter 2 | . . . . . . . . . . . . . . 2 . . . . Programmer 8 | . . . . . . . . . . . . . . . . . 4 4 Best Kill Streak 6 | 3 3 . 5 3 . 4 4 . 1 3 . . 1 6 5 . 3 3 Combat Bots Only 5 | . 3 . 5 3 . 3 3 . 1 1 . . . 1 4 . 2 2 Max Kills in Single Turn 4 | 1 1 . 2 1 . 4 2 . 1 1 . . 1 1 1 . 1 1 Gunslinging . | . . . . . . . . . . . . . . . . . . . Exploded 3 | . . . 2 . . 3 . . 1 . . . . 1 1 . 1 . Melee 1 | . . . . . . . . . . . . . . . . . 1 1 Uniques/NPCs Destroyed . | . . . . . . . . . . . . . . . . . . . Combat | -11 -10 -10 -9 -9 -9 -8 -8 -7 -7 -6 -6 -6 -5 -5 -4 -4 -4 -3 -------- Run | Yrd Mat Min Mat Min Exi Min Mat Fac DSF Fac Low Low Fac Ext Fac Was Fac Res Hostile Shots Fired 979 | . 69 . 160 30 . 31 114 . 93 101 1 2 . 69 9 1 95 204 Missed 322 | . 19 . 37 4 . 7 25 . 40 57 . 2 . 35 2 . 36 58 Damage Taken 11733 | . 500 . 1796 426 . 186 1176 . 958 657 19 . . 990 203 53 1216 3553 Core 2528 | . 124 . 184 45 . 7 103 . 261 113 . . . 121 23 . 237 1310 Absorbed by Shields 262 | . . . . . . . . . 22 . . . . 150 . . 33 57 Ignored by Resistances 69 | . . . 69 . . . . . . . . . . . . . . . Regen/Repaired (Parts) 141 | . 19 . . . . . . . . 62 . . . . 34 . 26 . Core Remaining (%) 73 | 100 . 50 . . . 41 81 . 62 . . 86 . 87 . . 77 . Volleys Fired 392 | 12 51 . 105 16 . 38 81 . 2 11 . . 2 33 7 4 10 20 Largest 2 | 2 2 . 2 2 . 2 2 . 2 2 . . 1 1 1 1 1 1 Hottest 120 | 70 70 . 100 88 . 100 100 . 69 48 . . 33 43 43 120 120 120 Shots Fired 680 | 24 102 . 207 30 . 65 155 . 3 18 . . 2 33 7 4 10 20 Gun 530 | 24 102 . 199 20 . 41 120 . . 14 . . 2 7 . . 1 . Cannon 99 | . . . 2 10 . 21 32 . 1 3 . . . 7 . 4 2 17 Launcher 47 | . . . 5 . . 3 . . 2 1 . . . 19 7 . 7 3 Special 4 | . . . 1 . . . 3 . . . . . . . . . . . Kinetic 399 | 12 83 . 111 26 . 48 84 . 1 17 . . 2 14 . . 1 . Thermal 203 | 7 19 . 67 4 . 14 71 . . . . . . . . 4 2 15 Explosive 47 | . . . 5 . . 3 . . 2 1 . . . 19 7 . 7 3 Electromagnetic 31 | 5 . . 24 . . . . . . . . . . . . . . 2 Robot Hit Streak 19 | 5 8 . 17 9 . 9 19 . 1 4 . . . 6 3 . 4 2 Robot Miss Streak 6 | 3 4 . 4 2 . 4 2 . 1 6 . . . 4 1 . 2 1 Penetration Max . | . . . . . . . . . . . . . . . . . . . Secondary Targets 3 | . . . 2 . . . 1 . . . . . . . . . . . Max Gunslinging Chain 1 | . . . 1 . . . 1 . . . . . . . . . . . Shots Hit Robots 511 | 15 50 . 142 21 5 38 104 . 1 22 . . 1 20 3 . 34 55 Core Hits 228 | 7 25 . 56 7 . 17 47 . 1 10 . . . 15 10 . 13 20 Critical Kills 1 | . . . . . . . . . . . . . . 1 . . . . Critical Parts Destroyed 4 | . . . . . . . 1 . . . . . . 2 . . 1 . Critical Strikes 19 | . 1 . 2 . . . 2 . . . . . . 3 . . 4 7 Burn 4 | . 1 . 2 . . . 1 . . . . . . . . . . . Destroy 2 | . . . . . . . 1 . . . . . . 1 . . . . Smash 3 | . . . . . . . . . . . . . . 2 . . 1 . Sever 9 | . . . . . . . . . . . . . . . . . 3 6 Impale 1 | . . . . . . . . . . . . . . . . . . 1 Melee Attacks 268 | . . . . . 5 . 1 . . 34 . . 8 41 4 1 62 112 Impact 56 | . . . . . . . . . . . . . . 41 4 1 10 . Slashing 202 | . . . . . . . . . . 34 . . 8 . . . 52 108 Piercing 4 | . . . . . . . . . . . . . . . . . . 4 Sneak Attacks 42 | . . . . . 5 . 1 . . 9 . . 1 5 . . 13 8 Combat Hostiles . | . . . . . . . . . . . . . . . . . . . Follow-up Attacks 3 | . . . . . . . . . . . . . . . . . . 3 Damage Inflicted 14227 | 212 562 . 2619 330 . 900 1728 . 73 1469 . . 103 1335 457 . 2226 2213 Guns 5406 | 212 560 . 2290 197 . 385 1474 . . 176 . . . 112 . . . . Cannons 731 | . . . 19 133 . 193 248 . . . . . . 130 . . . 8 Explosions 2311 | . . . 305 . . 322 . . 73 . . . . 471 457 . 614 69 Melee 5733 | . . . . . . . . . . 1293 . . 103 622 . . 1612 2103 Ramming 46 | . 2 . 5 . . . 6 . . . . . . . . . . 33 Kinetic 3938 | 124 486 . 1194 299 . 444 973 . . 176 . . . 242 . . . . Thermal 1848 | 51 74 . 768 31 . 175 749 . . . . . . . . . . . Explosive 2270 | . . . 305 . . 281 . . 73 . . . . 471 457 . 614 69 Electromagnetic 392 | 37 . . 347 . . . . . . . . . . . . . . 8 Impact 1086 | . . . . . . . . . . . . . . 622 . . 464 . Slashing 4532 | . . . . . . . . . . 1293 . . 103 . . . 1148 1988 Piercing 115 | . . . . . . . . . . . . . . . . . . 115 Highest Corruption 33 | . 2 2 3 9 9 9 . . . . . . . 2 . . 12 33 Average Corruption 5 | . 2 2 3 8 9 9 . . . . . . . 2 . . 4 11 Corruption Purged . | . . . . . . . . . . . . . . . . . . . Corruption Blocked . | . . . . . . . . . . . . . . . . . . . Effects 214 | . 9 5 51 14 28 60 . . . . . . . 6 . . 13 28 Message Errors 57 | . 3 2 13 4 8 11 . . . . . . . 2 . . 4 10 Matter Fused 40 | . 1 . 9 3 6 14 . . . . . . . 1 . . 1 5 Heat Flow Errors 29 | . 3 . 6 2 6 6 . . . . . . . 1 . . 3 2 Energy Discharges 28 | . . 1 8 4 4 9 . . . . . . . . . . 1 1 Parts Rejected 2 | . . . . . . . . . . . . . . . . . 1 1 Parts Fused 3 | . . . . . . 3 . . . . . . . . . . . . Data Loss (minor) 26 | . 1 2 6 . 3 8 . . . . . . . 1 . . 2 3 Data Loss (major) 14 | . 1 . 5 1 . 3 . . . . . . . 1 . . . 3 Misfires 7 | . . . 2 . . 5 . . . . . . . . . . . . Alerts 4 | . . . 1 . 1 . . . . . . . . . . . 1 1 Misdirections 2 | . . . . . . . . . . . . . . . . . . 2 Weapon Failures 2 | . . . 1 . . 1 . . . . . . . . . . . . Overload Shots . | . . . . . . . . . . . . . . . . . . . Overflow Damage 1545 | . . . . . . 22 . . . 301 . . 73 376 13 . 475 285 Projectiles . | . . . . . . . . . . . . . . . . . . . Explosions 110 | . . . . . . 22 . . . . . . . 14 13 . 61 . Melee 1435 | . . . . . . . . . . 301 . . 73 362 . . 414 285 Knockbacks 14 | . . . 1 . . 2 4 . . . . . . 4 . . 3 . Impact 6 | . . . . . . . . . . . . . . 3 . . 3 . Kinetic 5 | . . . 1 . . 2 2 . . . . . . . . . . . Secondary 3 | . . . . . . . 2 . . . . . . 1 . . . . Self-Inflicted Damage 383 | . . . 22 . . . . . 57 . . . . 83 97 . 34 90 Shots 11 | . . . 1 . . . . . 2 . . . . 2 3 . 1 2 Rammed 12 | . 2 . . . . . 1 . . . . . . . . . . 9 Targets Rammed 15 | . 2 . 2 . . . 2 . . . . . . . . . . 9 Kicked . | . . . . . . . . . . . . . . . . . . . Crushed 3 | . . . 2 . . . 1 . . . . . . . . . . . Highest Temperature 543 | 18 248 . 332 314 254 258 407 . . 17 8 . . 111 132 312 269 543 Average Temperature 75 | 9 43 . 52 211 94 68 50 . . 2 2 . . 34 44 125 107 132 Received Heat Transfer 1755 | . 174 . 654 102 . . 414 . 45 69 9 . . 105 . . 102 81 Effects 14 | . . . . 3 . . 2 . . . . . . . . 1 . 8 Shutdowns 3 | . . . . . . . . . . . . . . . . . . 3 Energy Bleed 1 | . . . . . . . . . . . . . . . . . . 1 Interference 6 | . . . . 3 . . 1 . . . . . . . . 1 . 1 Matter Decay 1 | . . . . . . . . . . . . . . . . . . 1 Short Circuit 1 | . . . . . . . . . . . . . . . . . . 1 Damage (minor) 2 | . . . . . . . 1 . . . . . . . . . . 1 Siege Activations . | . . . . . . . . . . . . . . . . . . . Robots Corrupted 9 | . . . . . . . . . . . . . . 4 . . 5 . Combat Hostiles . | . . . . . . . . . . . . . . . . . . . Parts Fried 28 | . . . 5 . . . . . . . . . . 10 . . 13 . Impact Corruptions 23 | . . . . . . . . . . . . . . 13 . . 10 . Robots Melted 1 | . . . . . . . 1 . . . . . . . . . . . Combat Hostiles 1 | . . . . . . . 1 . . . . . . . . . . . Parts Melted 7 | . 1 . 2 . . . 4 . . . . . . . . . . . Heat Transferred 4638 | 148 296 . 1924 74 . 383 1813 . . . . . . . . . . . Parts Sabotaged . | . . . . . . . . . . . . . . . . . . . Parts Stolen . | . . . . . . . . . . . . . . . . . . . Parts Stripped . | . . . . . . . . . . . . . . . . . . . Power Chain Reactions . | . . . . . . . . . . . . . . . . . . . Alert | -11 -10 -10 -9 -9 -9 -8 -8 -7 -7 -6 -6 -6 -5 -5 -4 -4 -4 -3 ------- Run | Yrd Mat Min Mat Min Exi Min Mat Fac DSF Fac Low Low Fac Ext Fac Was Fac Res Peak Influence 356 | 30 332 19 295 205 . 140 222 86 86 201 . . 92 341 356 145 216 141 Initial 142 | . 19 19 7 105 . . 21 86 60 18 . . 60 44 142 124 98 26 Average 102 | 16 106 19 183 168 . 44 59 86 71 50 . . 64 143 180 136 80 59 Maximum Alert Level 1 | . 1 . 1 1 . . 1 . . 1 . . . 1 1 . 1 . Low Security (%) 86 | 100 84 100 57 95 . 100 99 100 100 98 . . 100 81 89 100 96 100 Level 1 13 | . 15 . 42 4 . . . . . 1 . . . 18 10 . 3 . Level 2 . | . . . . . . . . . . . . . . . . . . . Level 3 . | . . . . . . . . . . . . . . . . . . . Level 4 . | . . . . . . . . . . . . . . . . . . . Level 5 . | . . . . . . . . . . . . . . . . . . . High Security . | . . . . . . . . . . . . . . . . . . . Max Security . | . . . . . . . . . . . . . . . . . . . Squads Dispatched 29 | . 2 1 3 . . . 4 . 1 4 . . 1 4 1 . 4 4 Investigation 8 | . . 1 2 . . . . . . 2 . . 1 1 . . 1 . Extermination 4 | . . . . . . . . . . . . . . . . . 1 3 Reinforcement 14 | . 2 . 1 . . . 1 . 1 2 . . . 3 1 . 2 1 Assault . | . . . . . . . . . . . . . . . . . . . Garrison 3 | . . . . . . . 3 . . . . . . . . . . . Intercept . | . . . . . . . . . . . . . . . . . . . Searches Triggered . | . . . . . . . . . . . . . . . . . . . Construction Impeded 2 | . . . . . . . . . . . . . . 2 . . . . Haulers Reinforced 2 | . . . . . . . . . . . . . . . 1 . 1 . Active Scanning Responses . | . . . . . . . . . . . . . . . . . . . Cargo Convoy Interrupts . | . . . . . . . . . . . . . . . . . . . Stealth | -11 -10 -10 -9 -9 -9 -8 -8 -7 -7 -6 -6 -6 -5 -5 -4 -4 -4 -3 --------- Run | Yrd Mat Min Mat Min Exi Min Mat Fac DSF Fac Low Low Fac Ext Fac Was Fac Res Distress Signals 9 | . . . 3 . . . . . . 1 . . . 1 . . 1 3 Communications Jammed 2 | . . . . . . . . . . . . . . . . . . 2 Distress Signals 2 | . . . . . . . . . . . . . . . . . . 2 Times Spotted 226 | . 33 . 43 5 . 7 25 . 6 22 8 4 . 20 4 6 20 23 Peak Tracking Total 9 | . 4 . 4 3 . 3 3 . 5 9 4 4 . 6 3 6 4 8 Tactical Retreats 32 | . 3 . 3 . . . . . . 5 3 . . 7 . . 7 4 Traps | -11 -10 -10 -9 -9 -9 -8 -8 -7 -7 -6 -6 -6 -5 -5 -4 -4 -4 -3 ------- Run | Yrd Mat Min Mat Min Exi Min Mat Fac DSF Fac Low Low Fac Ext Fac Was Fac Res Traps Triggered 19 | . 2 . 2 . . . . . 3 1 . . . 1 1 . 4 5 Indirectly . | . . . . . . . . . . . . . . . . . . . Trap Hack Attempts . | . . . . . . . . . . . . . . . . . . . Triggered . | . . . . . . . . . . . . . . . . . . . Disarmed . | . . . . . . . . . . . . . . . . . . . Reprogrammed . | . . . . . . . . . . . . . . . . . . . Reused . | . . . . . . . . . . . . . . . . . . . Traps Extracted . | . . . . . . . . . . . . . . . . . . . Installed . | . . . . . . . . . . . . . . . . . . . Triggered 1 | . . . . . . . . . . . . . . 1 . . . . Machines | -11 -10 -10 -9 -9 -9 -8 -8 -7 -7 -6 -6 -6 -5 -5 -4 -4 -4 -3 ---------- Run | Yrd Mat Min Mat Min Exi Min Mat Fac DSF Fac Low Low Fac Ext Fac Was Fac Res Machines Disabled 13 | . . . . . . 4 . . . . . . . 5 . . 1 3 Max in Single Turn 2 | . . . . . . 2 . . . . . . . 2 . . 1 1 Garrison Access 3 | . . . . . . . . . . 1 . . . . . . 2 . Machines Repaired . | . . . . . . . . . . . . . . . . . . . Machines Dismantled . | . . . . . . . . . . . . . . . . . . . Machines Sabotaged . | . . . . . . . . . . . . . . . . . . . Overloaded Fab Kills . | . . . . . . . . . . . . . . . . . . . Hacking | -11 -10 -10 -9 -9 -9 -8 -8 -7 -7 -6 -6 -6 -5 -5 -4 -4 -4 -3 --------- Run | Yrd Mat Min Mat Min Exi Min Mat Fac DSF Fac Low Low Fac Ext Fac Was Fac Res Machines Accessed 56 | . 6 1 5 . 1 . 4 1 . 11 1 . 3 5 5 . 11 2 Terminals 37 | . 5 . 5 . . . 3 1 . 6 . . 3 4 4 . 4 2 Fabricators 3 | . . . . . . . . . . 1 . . . . . . 2 . Repair Stations 5 | . 1 . . . . . . . . 2 . . . . 1 . 1 . Recycling Units 3 | . . . . . . . . . . . . . . 1 . . 2 . Scanalyzers 1 | . . . . . . . . . . 1 . . . . . . . . Garrison Access 4 | . . . . . . . 1 . . 1 . . . . . . 2 . Total Hacks 125 | . 17 1 17 . 1 . 10 1 . 23 1 . 5 7 15 . 23 4 Successful 65 | . 7 1 7 . 1 . 4 1 . 14 1 . 3 4 10 . 12 . Failed 60 | . 10 . 10 . . . 6 . . 9 . . 2 3 5 . 11 4 Catastrophic 12 | . . . 3 . . . 2 . . 2 . . . . 2 . 2 1 Database Lockouts . | . . . . . . . . . . . . . . . . . . . Manual 56 | . 9 . 12 . 1 . 3 . . 9 . . 2 . 11 . 6 3 Terminals 93 | . 15 . 17 . . . 9 1 . 12 . . 5 6 13 . 11 4 Fabricators 4 | . . . . . . . . . . 1 . . . . . . 3 . Repair Stations 12 | . 2 . . . . . . . . 6 . . . . 2 . 2 . Recycling Units 4 | . . . . . . . . . . . . . . 1 . . 3 . Scanalyzers 3 | . . . . . . . . . . 3 . . . . . . . . Garrison Access 6 | . . . . . . . 1 . . 1 . . . . . . 4 . Terminal Hacks 36 | . 4 1 5 . 1 . 3 1 . 3 1 . 3 3 7 . 4 . Part Schematic 2 | . . . 1 . . . . . . 1 . . . . . . . . Robot Analysis 1 | . . . 1 . . . . . . . . . . . . . . . Prototype ID Bank 4 | . 1 . 1 . . . 1 . . . . . . . 1 . . . Open Door 6 | . . 1 . . . . . . . . 1 . 1 3 . . . . Open DSF 2 | . . . . . . . . 1 . . . . . . . . 1 . Level Access Points 2 | . . . . . . . . . . . . . . . 1 . 1 . Branch Access Points 3 | . 1 . . . . . . . . 1 . . . . 1 . . . Machine Index 1 | . . . . . . . . . . . . . . . 1 . . . Fabricator Index 1 | . . . . . . . . . . . . . . . . . 1 . Unreport Threat 2 | . . . . . . . 1 . . . . . . . . . 1 . Maintenance Status 1 | . . . . . . . . . . . . . . . 1 . . . Hauler Manifests 6 | . 1 . 1 . . . 1 . . 1 . . 1 . 1 . . . Registered Components 4 | . 1 . 1 . . . . . . . . . 1 . 1 . . . Derelict Proto ID Bank 1 | . . . . . 1 . . . . . . . . . . . . . Fabricator Hacks 3 | . . . . . . . . . . 1 . . . . . . 2 . Network Status 1 | . . . . . . . . . . 1 . . . . . . . . Load Schematic 1 | . . . . . . . . . . . . . . . . . 1 . Build 1 | . . . . . . . . . . . . . . . . . 1 . Repair Station Hacks 11 | . 2 . . . . . . . . 5 . . . . 2 . 2 . Scan Component 6 | . 1 . . . . . . . . 3 . . . . 1 . 1 . Repair 5 | . 1 . . . . . . . . 2 . . . . 1 . 1 . Recycling Unit Hacks 3 | . . . . . . . . . . . . . . 1 . . 2 . Retrieve Components 3 | . . . . . . . . . . . . . . 1 . . 2 . Scanalyzer 3 | . . . . . . . . . . 3 . . . . . . . . Insert Component 2 | . . . . . . . . . . 2 . . . . . . . . Analyze 1 | . . . . . . . . . . 1 . . . . . . . . Garrison Access Hacks 3 | . . . . . . . . . . 1 . . . . . . 2 . Seal Access 3 | . . . . . . . . . . 1 . . . . . . 2 . Unauthorized Hacks 6 | . 1 . 2 . . . 1 . . 1 . . . . 1 . . . Terminals 6 | . 1 . 2 . . . 1 . . 1 . . . . 1 . . . Assimilate 1 | . . . . . . . . . . 1 . . . . . . . . Botnet 5 | . 1 . 2 . . . 1 . . . . . . . 1 . . . Fabricators . | . . . . . . . . . . . . . . . . . . . Repair Stations . | . . . . . . . . . . . . . . . . . . . Recycling Units . | . . . . . . . . . . . . . . . . . . . Scanalyzers . | . . . . . . . . . . . . . . . . . . . Garrison Access . | . . . . . . . . . . . . . . . . . . . Data Cores Recovered 1 | . . . 1 . . . . . . . . . . . . . . . Used 1 | . . . 1 . . . . . . . . . . . . . . . Hacking Detections 40 | . 6 . 5 . . . 4 . . 7 . . 3 2 4 . 7 2 Full Trace Events 7 | . 1 . 1 . . . 1 . . 2 . . . 1 . . 1 . Feedback Events . | . . . . . . . . . . . . . . . . . . . Feedback Blocked . | . . . . . . . . . . . . . . . . . . . Robot Schematics Acquired . | . . . . . . . . . . . . . . . . . . . Robots Built . | . . . . . . . . . . . . . . . . . . . Authchips . | . . . . . . . . . . . . . . . . . . . Time . | . . . . . . . . . . . . . . . . . . . Total Robot Build Rating . | . . . . . . . . . . . . . . . . . . . Part Schematics Acquired 3 | . . . 1 . . . . . . 2 . . . . . . . . Parts Built 2 | . . . . . . . . . . . . . . . . . 2 . Authchips . | . . . . . . . . . . . . . . . . . . . Time 36 | . . . . . . . . . . . . . . . . . 36 . Total Part Build Rating 6 | . . . . . . . . . . . . . . . . . 6 . Parts Repaired 5 | . 1 . . . . . . . . 2 . . . . 1 . 1 . Time 134 | . 26 . . . . . . . . 76 . . . . 13 . 19 . Parts Recycled . | . . . . . . . . . . . . . . . . . . . Recycled Matter . | . . . . . . . . . . . . . . . . . . . Retrieved Matter . | . . . . . . . . . . . . . . . . . . . Retrieved Components 15 | . . . . . . . . . . . . . . 3 . . 12 . Parts Scanalyzed 1 | . . . . . . . . . . 1 . . . . . . . . Part Schematics Acquired 1 | . . . . . . . . . . 1 . . . . . . . . Parts Damaged . | . . . . . . . . . . . . . . . . . . . Bothacking | -11 -10 -10 -9 -9 -9 -8 -8 -7 -7 -6 -6 -6 -5 -5 -4 -4 -4 -3 ------------ Run | Yrd Mat Min Mat Min Exi Min Mat Fac DSF Fac Low Low Fac Ext Fac Was Fac Res Used RIF Installer . | . . . . . . . . . . . . . . . . . . . Robots Hacked 4 | . . . . . 4 . . . . . . . . . . . . . Non-combat 3 | . . . . . 3 . . . . . . . . . . . . . Combat 1 | . . . . . 1 . . . . . . . . . . . . . Robot Hacks Applied 4 | . . . . . 4 . . . . . . . . . . . . . parse_system 4 | . . . . . 4 . . . . . . . . . . . . . Relay Couplers Released . | . . . . . . . . . . . . . . . . . . . Fabnet Peak Effective % . | . . . . . . . . . . . . . . . . . . . Robots Rewired . | . . . . . . . . . . . . . . . . . . . Allies Hacked . | . . . . . . . . . . . . . . . . . . . Hacks Repelled . | . . . . . . . . . . . . . . . . . . . Allies | -11 -10 -10 -9 -9 -9 -8 -8 -7 -7 -6 -6 -6 -5 -5 -4 -4 -4 -3 -------- Run | Yrd Mat Min Mat Min Exi Min Mat Fac DSF Fac Low Low Fac Ext Fac Was Fac Res Total Allies 3 | . . . . . . . . . . 1 . . . 2 . . . . Largest Group 2 | . . . . . . . . . . 1 . . . 2 . . . . Highest-Rated Group 184 | . . . . . . . . . . 26 . . . 184 . . . . Highest-Rated Ally 159 | . . . . . . . . . . 26 . . . 159 . . . . Total Orders 26 | . . . . . . . . . . . . . 11 6 . . 7 2 STAY 1 | . . . . . . . . . . . . . . 1 . . . . FOLLOW 2 | . . . . . . . . . . . . . 2 . . . . . EXPLORE 16 | . . . . . . . . . . . . . 5 3 . . 6 2 RETURN 7 | . . . . . . . . . . . . . 4 2 . . 1 . Ally Attacks 38 | . . . . . . . . . . . . . . 38 . . . . Total Damage 1232 | . . . . . . . . . . . . . . 1232 . . . . Kills 8 | . . . . . . . . . . . . . . 8 . . . . Allies Corrupted . | . . . . . . . . . . . . . . . . . . . Allies Melted . | . . . . . . . . . . . . . . . . . . . Intel | -11 -10 -10 -9 -9 -9 -8 -8 -7 -7 -6 -6 -6 -5 -5 -4 -4 -4 -3 ------- Run | Yrd Mat Min Mat Min Exi Min Mat Fac DSF Fac Low Low Fac Ext Fac Was Fac Res Robot Analysis Total 1 | . . . 1 . . . . . . . . . . . . . . . Derelict Logs Recovered 2 | . . 1 . . . . . . . . 1 . . . . . . . Drone Launches 16 | . . . . . . . . . . . . . 4 3 . . 7 2 Drone Recoveries 9 | . . . . . . . . . . . . . 4 2 . . 3 . Exploration | -11 -10 -10 -9 -9 -9 -8 -8 -7 -7 -6 -6 -6 -5 -5 -4 -4 -4 -3 ------------- Run | Yrd Mat Min Mat Min Exi Min Mat Fac DSF Fac Low Low Fac Ext Fac Was Fac Res Turns Passed 14948 | 254 1638 257 2995 375 877 1659 1549 52 129 778 301 6 165 1054 189 89 1461 1120 Spaces Moved 12065 | 135 777 131 1086 136 540 644 516 34 158 1597 873 24 254 1320 460 221 1784 1375 Core 16 | 12 . . . . . . . . . . . . . . . . . 4 Treads 3962 | 123 777 131 1086 136 540 644 516 5 4 . . . . . . . . . Legs 14 | . . . . . . . . . . . . . . . . . . 14 Wheels . | . . . . . . . . . . . . . . . . . . . Hover 834 | . . . . . . . . . . . . . . 689 . . 73 72 Flight 7239 | . . . . . . . . 29 154 1597 873 24 254 631 460 221 1711 1285 Fastest Speed 21 | 50 160 160 160 160 160 240 160 107 28 23 24 24 24 22 21 21 25 23 Average Speed 86 | 151 160 160 219 231 160 240 223 114 52 23 24 24 27 36 21 21 34 32 Slowest Speed 240 | 160 160 160 240 240 160 240 240 160 160 106 24 24 28 107 96 25 120 240 Overloaded Moves 68 | . . . . . . . . . . . . . . 68 . . . . Propulsion Burnouts . | . . . . . . . . . . . . . . . . . . . Robots Hopped 1 | . . . . . . . . . . . . . . . 1 . . . Cave-ins Triggered 1 | . . . . . . . . . . . . . . 1 . . . . Exploration Rate (%) 46 | 9 70 27 68 26 92 81 38 . 92 30 81 7 9 52 11 79 46 16 Regions Visited 18 Branch Regions 7 Pre-discovered Areas . | . . . . . . . . . . . . . . . . . . . Known Exits Taken 5 | . 1 1 . . . . . 1 . 1 . . . . . . 1 . Unknown Exits Taken 10 | 1 . . 1 1 1 1 1 . . . 1 1 1 1 . . . . Scrap Searched 6 | . . 1 . . . 1 . . . . 4 . . . . . . . Spaces Dug 126 | . . . 1 . . . . . . 19 . . 8 23 14 4 25 32 Terrain Destroyed 454 | . . . 28 . . 18 . . 7 19 . . 8 217 46 5 64 42 Melee 83 | . . . . . . . . . . 18 . . 7 13 4 1 23 17 Projectile 24 | . . . 1 . . . . . . 1 . . 1 . . 4 2 15 AOE 347 | . . . 27 . . 18 . . 7 . . . . 204 42 . 39 10 Terrain Rammed . | . . . . . . . . . . . . . . . . . . . Walls Destroyed . | . . . . . . . . . . . . . . . . . . . Machines Disabled . | . . . . . . . . . . . . . . . . . . . Actions | -11 -10 -10 -9 -9 -9 -8 -8 -7 -7 -6 -6 -6 -5 -5 -4 -4 -4 -3 --------- Run | Yrd Mat Min Mat Min Exi Min Mat Fac DSF Fac Low Low Fac Ext Fac Was Fac Res Total 15536 | 156 1075 180 1480 166 554 694 752 48 200 1914 964 23 328 1804 534 259 2539 1866 Wait 2012 | . 215 39 180 6 . 2 90 . . 189 79 . 42 348 29 18 557 218 Move 12045 | 134 776 130 1085 135 539 643 515 33 157 1596 872 23 253 1318 458 220 1783 1375 Hop 1 | . . . . . . . . . . . . . . . 1 . . . Pick Up 190 | 2 13 3 19 . 2 2 10 1 19 40 6 . 8 6 10 3 27 19 Fast Attach 114 | 7 6 2 15 2 . . 10 . 1 4 2 . 2 3 6 2 23 29 Attach 115 | . 1 1 12 1 1 1 5 4 7 16 1 . 4 11 8 3 19 20 Detach 66 | . 1 1 3 . 2 . . 5 5 7 . . 1 5 7 3 14 12 Swap 120 | 1 4 . 29 4 . 7 17 4 3 8 . . 5 21 4 1 4 8 Drop 150 | . 6 4 30 2 5 1 21 1 . 9 4 . 3 4 . 4 28 28 Fire 392 | 12 51 . 105 16 . 38 81 . 2 11 . . 2 33 7 4 10 20 Melee 264 | . . . . . 5 . 1 . . 34 . . 8 41 4 1 62 108 Ram 9 | . . . . . . . . . . . . . . . . . . 9 Kick . | . . . . . . . . . . . . . . . . . . . Crush 6 | . 2 . 2 . . . 2 . . . . . . . . . . . Escape Stasis 52 | . . . . . . . . . 6 . . . . 14 . . 12 20 Rewire . | . . . . . . . . . . . . . . . . . . . Trap . | . . . . . . . . . . . . . . . . . . . Miscellaneous . | . . . . . . . . . . . . . . . . . . . Route ------- -11/Scrapyard -10/Materials (discovered 4 exits: *Mat x2 / *Min x2) -10/Mines (discovered 2 exits: *Mat x2) -9/Materials (discovered 5 exits: *Mat x2 / [*Min x2] / *Sto) -9/Mines (discovered 3 exits: *Mat x2 / *Exi) -9/Exiles -8/Mines (discovered 2 exits: *Mat x2) -8/Materials -7/Factory -7/DSF -6/Factory (discovered 3 exits: *Fac / *Low x2) -6/Lower Caves -6/Lower Caves -5/Factory -5/Extension -4/Factory (discovered 6 exits: Res x4 / *Upp x2) -4/Waste -4/Factory (discovered 5 exits: *Res x4 / *Upp) -3/Research History --------- Turn | Location | Event 2 | -11/Scrapyard | Met Revision 17 9 | -11/Scrapyard | Discovered new exit (range 15) 255 | -11/Scrapyard | Entered Materials 313 | -10/Materials | Build established: Mutant 524 | -10/Materials | Identified exit to Mines 797 | -10/Materials | Discovered new exit (range 13) 1211 | -10/Materials | Identified exit to Materials 1432 | -10/Materials | Discovered exit to Materials (range 16) 1493 | -10/Materials | Repaired Seismic Detector 1893 | -10/Materials | Entered Mines 1981 | -10/Mines | Discovered exit to Materials (range 14) 2051 | -10/Mines | YI-UF0 nonchalantly dropped a Grenade Launcher on the ground 2066 | -10/Mines | Met a Derelict shopkeep closing up shop 2150 | -10/Mines | Entered Materials 2150 | -9/Materials | Evolved 2 slots: Propulsion x1, Utility x1 2898 | -9/Materials | Build established: Scavenger-Mutant 3051 | -9/Materials | Discovered new exit (range 15) 3376 | -9/Materials | Identified exit to Storage 3425 | -9/Materials | Discovered new exit (range 10) 3743 | -9/Materials | Discovered new exit (range 15) 4545 | -9/Materials | Discovered new exit (range 16) 4859 | -9/Materials | Discovered new exit (range 16) 5145 | -9/Materials | Entered Mines 5146 | -9/Mines | Assembled infested the area 5152 | -9/Mines | Core integrity fell below 50% 5203 | -9/Mines | Lost 3 parts (1n2u) 5249 | -9/Mines | Discovered new exit (range 4) 5304 | -9/Mines | Received a Rocket Launcher from a helpful Derelict 5419 | -9/Mines | Discovered new exit (range 9) 5511 | -9/Mines | Discovered new exit (range 5) 5520 | -9/Mines | Entered Exiles 5566 | -9/Exiles | Met 8R-AWN 5594 | -9/Exiles | Met EX-HEX 5641 | -9/Exiles | Met EX-BIN 5663 | -9/Exiles | Aligned with FarCom system 5665 | -9/Exiles | Given EX-Vault access code 5703 | -9/Exiles | Opened EX-Vault 5716 | -9/Exiles | Found Lightpack 2.0 5753 | -9/Exiles | Warned to stay clear of 0b10 Research branches 5939 | -9/Exiles | Met EX-DEC 6017 | -9/Exiles | Visited The Gauntlet 6378 | -9/Exiles | Discovered new exit (range 14) 6397 | -9/Exiles | Left Exiles lab with Lightpack 2.0 6397 | -9/Exiles | Entered Mines 6438 | -8/Mines | Discovered new exit (range 10) 7541 | -8/Mines | Discovered new exit (range 6) 8056 | -8/Mines | Entered Materials 8056 | -8/Materials | Evolved 2 slots: Utility x2 8237 | -8/Materials | Garrison activated, responded to threat 9556 | -8/Materials | Discovered new exit (range 16) 9605 | -8/Materials | Entered Factory 9605 | -7/Factory | Evolved 2 slots: Propulsion x1, Utility x1 9657 | -7/Factory | Identified exit to DSF 9657 | -7/Factory | Entered DSF 9709 | -7/DSF | Additional patrols routed to DSF 9782 | -7/DSF | Discovered new exit (range 11) 9786 | -7/DSF | Entered Factory 9786 | -6/Factory | Evolved 2 slots: Propulsion x1, Utility x1 9816 | -6/Factory | Lost 5 parts (1p3n1u) 9852 | -6/Factory | Repaired Grenade Launcher 9945 | -6/Factory | Discovered new exit (range 13) 9994 | -6/Factory | Build established: Hauler-Sprinter 10198 | -6/Factory | Spotted B-75 Beast 10219 | -6/Factory | Repaired Imp. System Shield 10228 | -6/Factory | Found Prototype Launcher 10529 | -6/Factory | Identified exit to Lower Caves 10564 | -6/Factory | Entered Lower Caves 10567 | -6/Lower Caves | Encountered a Warlord checkpoint 10771 | -6/Lower Caves | Learned Factory emergency access door positions 10772 | -6/Lower Caves | Spotted B-75 Beast 10861 | -6/Lower Caves | Discovered new exit (range 15) 10865 | -6/Lower Caves | Entered another Lower Caves area 10866 | -6/Lower Caves | Discovered new exit (range 9) 10871 | -6/Lower Caves | Entered Factory 10871 | -5/Factory | Evolved 2 slots: Utility x2 11034 | -5/Factory | Discovered new exit (range 10) 11036 | -5/Factory | Entered Extension 11468 | -5/Extension | Rescued A7 11531 | -5/Extension | Crushed by falling debris 11635 | -5/Extension | Build established: Hauler-Mutant 12033 | -5/Extension | Rescued a captive Derelict 12042 | -5/Extension | Spotted B-75 Beast 12074 | -5/Extension | Spotted B-75 Beast 12078 | -5/Extension | Discovered new exit (range 3) 12090 | -5/Extension | Entered Factory 12090 | -4/Factory | Evolved 2 slots: Power x1, Propulsion x1 12121 | -4/Factory | Lost 5 parts (2n3u) 12123 | -4/Factory | Discovered new exit (range 15) 12145 | -4/Factory | Identified exit to Upper Caves 12145 | -4/Factory | Identified exit to Research 12157 | -4/Factory | Spotted B-86 Titan 12204 | -4/Factory | Identified Scatter Rocket Array 12238 | -4/Factory | Repaired Grenade Launcher 12279 | -4/Factory | Sucked down chute 12279 | -4/Factory | Entered Waste 12320 | -4/Waste | Spotted C-40 Crusher 12320 | -4/Waste | Spotted C-40 Crusher 12338 | -4/Waste | Spotted C-40 Crusher 12346 | -4/Waste | Spotted C-40 Crusher 12347 | -4/Waste | Spotted C-40 Crusher 12360 | -4/Waste | Spotted C-40 Crusher 12364 | -4/Waste | Crushed by Compactor (1 part destroyed, 2 dropped) 12365 | -4/Waste | Discovered new exit (range 16) 12368 | -4/Waste | Entered Factory 12515 | -4/Factory | Discovered exit to Upper Caves (range 15) 12716 | -4/Factory | Found Prototype Device 12716 | -4/Factory | Identified Exp. ECM Suite 12781 | -4/Factory | Found Prototype Processor 12781 | -4/Factory | Identified Exp. Terrain Scan Processor 12804 | -4/Factory | Build established: Hacker-Mutant 12815 | -4/Factory | Fabricated Katana? 13179 | -4/Factory | Spotted B-86 Titan 13660 | -4/Factory | Repaired Katana 13681 | -4/Factory | Build established: Hauler-Mutant 13732 | -4/Factory | System corruption reached 10% 13829 | -4/Factory | Entered Research 13829 | -3/Research | Evolved 2 slots: Propulsion x1, Utility x1 14272 | -3/Research | Lost 7 parts (1p2n3u1w) 14309 | -3/Research | System corruption reached 10% 14333 | -3/Research | Lost 3 parts (1n1u1w) 14621 | -3/Research | Spotted B-86 Titan 14623 | -3/Research | Build established: Hacker-Sprinter 14843 | -3/Research | Lost 3 parts (1n2u) 14915 | -3/Research | Core integrity fell below 50% 14929 | -3/Research | Core integrity fell below 20% 14933 | -3/Research | System corruption reached 30% 14949 | -3/Research | Destroyed by P-80 Master with Gamma Rifle Last Messages --------------- 14911_ System corrupted: Substantial component data lost. 14911_ Structural Scanner destroyed. 14916_ Hacking Suite destroyed. 14920_ Antimissile System destroyed. 14921_ Dropped Lgt. Antimatter Reactor. 14922_ Slammed into P-80 Master. 14923_ Imp. Hacking Suite destroyed. 14923_ Slammed into P-80 Master. 14926_ System corrupted: Matter fused (-10). 14926_ Acquired 4 matter. 14926_ Slammed into P-80 Master. 14926_ Destabilizing: System corrupted (+1). 14927_ Slammed into P-80 Master. 14928_ Destabilizing: Core damaged (-52). 14930_ Slammed into P-80 Master. 14933_ Acquired Imp. VSS Leg. 14938_ ALERT: Suspicious intruders detected, dispatching Specialist reinforcements to area. 14943_ GQ>Z2GNWJFR2Q|&KI8=TDYJZREV=NIWYOXSJVE Map ----- +----------------------------------------------------+ | ?????????????????????????????????????????????????? | | ###+#####????????????????????????????????????????? | | ?????????????????????????????????????? | | ?????????????????????????????????????? | | ?????????????????????????????????????? | | ##########+??????????????????????????????????????? | | ?????????????????????????????????????????????????? | | ?????????????????????????????????????????????????? | | ?????????????????????????????????????????????????? | | ?????????????????????????????????????????????????? | | ?????????????????????????????????????????????????? | | ?????????????????????????????????????????????????? | | ?????????????????????????????????????????????????? | | ?????????????????????????????????????????????????? | | ?????????????????????????????????????????????????? | | ?????????????????????????????????????????????????? | | ?????????????????????????????????????????????????? | | ?????????????????????????????????????????????????? | | ?????????????????????????????????????????????????? | | ?????????????????????????????????????????????????? | | ?????????????????????###+##??????????????????????? | | ?????????????????????# x???x??H???????????????? | | ?????????????????????# #??????????????????????? | | ?????????????????????# #??????????????????????? | | #????????????????????# #??????????????????????? | | #######??????????????# @###########???????###### | | ?g??????????## # #??########### | | ???????????? # # #??####### | | ??????????? # # === #??##! ## | | ??????????? # ^ # === #??## ##! | | ]]! ??????""" # p# = ##### ## | | ]!! !BB??? """ + t /p ##### ## | | ]!! BB????""" # # g%/% %/* ## | | ##????""" # # ##### ## | | ???? ? # ############### ## | | ### # ! ##/###! | | ! ############ !#|! | | ###### ## +%!/ | | ###### ## ![= #### #![ | | ###### """ ## [[= #### #| | | +% """ ## [== ####+##### | | ###### """ ## # # | | ###### ## """ # # | | ##+######## "# "" F"" # """ !# | | #######+###### """""" # """ # | | ##### #### """" + """ # | | "" ##?## ################## # """ # | | "" ]/ ##?## + ###### # """ # | | "" // ##?## ### ##??## # # | | ##?## ### """ ##??## # # | +----------------------------------------------------+ Best States ------------- Heat Dissipation 54 Energy Generation 51 Energy Capacity 670 Matter Stores 300 Matter Capacity 300 Sight Range 16 Robot Scan Range 18 Terrain Scan Range 24 Terrain Scan Density 10 ECM Strength 3 Jamming Range 14 Power Amplification 30 Additional Mass Support 16 Base Temperature (-) 150 Corruption Containment 12 Armor Coverage 450 Resistance: KI 20 Point Defense Rating 240 Evasion (%) 75 Recoil Reduction 3 Energy Filtering 50 Offensive Hacking 32 Defensive Hacking 12 Item Schematics ----------------- Mni. Grenade Launcher | -9/Materials | Hacked Katana | -6/Factory | Hacked Imp. Flight Unit | -6/Factory | Scanalyzed Robot Schematics ------------------ None Fabricated ------------ Katana | x2 | -4/Factory Alien Tech Used ----------------- None Achievements -------------- Prison Break Challenges ------------ None Game ------ Seed CoolingPropulsionCarapace Manual? 0 Play Time 04:42:48 Cumulative 67.1 hours Start 2025.03.26 @ 23:41:29 End 2025.03.27 @ 04:57:44 Sessions 1 Manual Loads 0 Difficulty Rogue Special Mode None Game No. 32 Rogue 31 Adventurer 1 Explorer 0 Win Type - Total 0 Types 0/0/0/0/0/0/0/0/0 Lore% 12 Gallery% 33 Achievement% 30 Wizard Run 0 Options --------- Layout 1 ASCII 0 Keyboard 0 Movement Mouse Keybinds 0 Fullscreen 2 Font 24/Smallcaps Map View 50x35 Zoom Use 0% Tactical HUD 1 Map Filters NONE Filters NONE Steam 1 RUN: fe22f021-31e9-4805-b6e7-71ec91ace46c